Cogmind - Beta 15 @@@ ROGUE MODE // 2025.07.13 @ 14:41:59 Player: Occam Result: Self-destructed Performance ------------- Evolutions (4) 2000 Regions Visited (9) 1800 Robots Destroyed (163) 815 Value Destroyed (3989) 3989 Prototype IDs (44) 880 Alien Tech Used (0) 0 Bonus (1401) 1401 TOTAL SCORE: 10885 Bonus ------- High Alert Combat Kills 63 Follower Combat Kills 538 Registered with UFD 300 Met Optimus in HQ 500 Cogmind --------- Core Integrity 292/850 Matter 283/300 Energy 22/100 System Corruption 25% Temperature Cool (18) Movement Flying (32) Location -6/Factory Parts ------- > --- POWER (1) -------- (None) > --- PROPULSION (4) --- Cooled VTOL Module Cooled VTOL Module Cooled VTOL Module > --- UTILITY (8) ------ Experimental Sensor Array Advanced Signal Interpreter Improved Light Armor Plating Hacking Suite > --- WEAPON (2) ------- Shock Maul Chainsword > --- INVENTORY (5) ---- Cooled VTOL Module Improved System Restoration Module Trap Extractor (4/4 Shock) Heavy Plasma Cannon Neutron Missile Launcher Peak State ------------ > --- POWER ------------ Mini Fusion Reactor > --- PROPULSION ------- Cooled VTOL Module Cooled VTOL Module Cooled VTOL Module Cooled VTOL Module > --- UTILITY ---------- Structural Scanner Experimental Sensor Array Experimental Signal Interpreter Improved Light Armor Plating Improved Hacking Suite Improved Hacking Suite Improved System Shield A0-MCA's Component Scanner > --- WEAPON ----------- Neutron Missile Launcher Shock Maul > --- INVENTORY -------- Cooled VTOL Module Improved System Restoration Module Trap Extractor Heavy Plasma Cannon Chainsword [Rating: 89] Favorites ----------- Power Cooled Ion Engine Engine Cooled Ion Engine Power Core Backup Power VII Reactor Mini Fusion Reactor Propulsion Armored Wheel Treads Light Treads Leg Aluminum Leg Wheel Armored Wheel Flight Unit Cooled VTOL Module Utility Structural Scanner Device Structural Scanner Storage High-capacity Storage Unit Processor Experimental Signal Interpreter Hackware Improved Hacking Suite Protection Medium Armor Plating Weapon Improved Assault Rifle Energy Cannon Particle Cannon Ballistic Gun Improved Assault Rifle Ballistic Cannon Mini Assault Cannon Launcher Precision Rocket Launcher Impact Weapon Heavy Hammer Slashing Weapon Chainsword Piercing Weapon Kinetic Spear Special Melee Weapon Improved Datajack Build | -11 -10 -10 -9 -9 -9 -9 -6 -6 -6 ------- Run | Yrd Mat Min Mat Sto Rec Scr Fac Was Fac Slots Evolved 8 | . . . 2 . . . 6 . . Power . | . . . . . . . . . . Propulsion 2 | . . . . . . . 2 . . Utility 6 | . . . 2 . . . 4 . . Weapon . | . . . . . . . . . . Parts Attached 120 | 3 8 9 33 22 2 7 19 . 17 Power 14 | . . 2 7 3 . . 2 . . Engine 12 | . . 2 7 3 . . . . . Core 1 | . . . . . . . 1 . . Reactor 1 | . . . . . . . 1 . . Propulsion 33 | 2 1 1 12 5 1 1 7 . 3 Treads 16 | 2 . 1 9 3 1 . . . . Leg 1 | . . . . . . . . . 1 Wheel 6 | . 1 . 2 2 . 1 . . . Hover . | . . . . . . . . . . Flight 10 | . . . 1 . . . 7 . 2 Utility 43 | 1 4 1 8 9 . 3 6 . 11 Device 15 | 1 3 1 3 4 . . 1 . 2 Storage 2 | . 1 . . 1 . . . . . Processor 7 | . . . 2 1 . 1 2 . 1 Hackware 12 | . . . . . . 2 3 . 7 Protection 7 | . . . 3 3 . . . . 1 Artifact . | . . . . . . . . . . Weapon 30 | . 3 5 6 5 1 3 4 . 3 Energy Gun . | . . . . . . . . . . Energy Cannon 6 | . 2 2 . . . . 2 . . Ballistic Gun 12 | . . 1 6 4 . 1 . . . Ballistic Cannon 1 | . . . . 1 . . . . . Launcher 4 | . . 2 . . . . 1 . 1 Special Weapon . | . . . . . . . . . . Impact Weapon 2 | . 1 . . . . . . . 1 Slashing Weapon 2 | . . . . . . 1 . . 1 Piercing Weapon 1 | . . . . . . . 1 . . Special Melee Weapon 2 | . . . . . 1 1 . . . Unidentified Prototypes 6 | . . 1 4 1 . . . . . Corrupted Parts 1 | . . . . . . 1 . . . System Corruption 3 | . . . . . . 3 . . . Parts Lost 29 | . . 6 4 8 1 . 1 . 9 Power 3 | . . 2 . . . . . . 1 Propulsion 6 | . . 2 1 2 . . . . 1 Utility 14 | . . . 2 4 . . 1 . 7 Weapon 6 | . . 2 1 2 1 . . . . Highest Loss Streak 6 | . . 5 3 5 1 . 1 . 6 To Critical Strikes 1 | . . . 1 . . . . . . Average Backups 17 | 6 15 19 19 19 24 23 5 5 4 Power . | 1 1 . . 1 1 . . . . Propulsion 4 | 3 2 2 4 7 7 6 . . . Utility 7 | . 5 8 8 5 11 11 3 3 2 Weapon 4 | 1 6 6 5 4 4 4 1 2 2 Tool/Special . | . . . . . . . . . . Unused Backups 44 | 8 1 2 12 5 2 5 8 . 1 Power 4 | 1 . 1 1 . . 1 . . . Propulsion 10 | 4 . . 3 2 . 1 . . . Utility 17 | 1 . . 5 1 1 2 6 . 1 Weapon 13 | 2 1 1 3 2 1 1 2 . . Tool/Special . | . . . . . . . . . . Average Slot Usage (%) 97 | . 100 99 99 98 100 91 98 100 97 Engine 9 | . 14 13 11 11 11 11 1 . . Treads 8 | . 19 26 11 11 11 . . . . Wheel 9 | . 8 1 10 10 11 21 . . . Flight 5 | . . . . . . . 25 26 25 Device 19 | . 14 14 16 20 31 30 12 13 12 Storage 8 | . 14 14 11 11 11 11 . . . Processor 6 | . . . 6 3 1 1 19 20 14 Hackware 4 | . . . . . . 1 18 20 19 Protection 3 | . . . 9 7 . . . . 4 Energy Cannon 3 | . 14 27 2 . . . 2 . . Ballistic Gun 10 | . 12 . 18 20 21 . 1 . . Impact Weapon 2 | . . . . . . 7 . . 4 Slashing Weapon 2 | . . . . . . 3 5 6 5 Peak Build Rating 89 | 8 13 19 24 27 27 33 85 85 89 Average Rating 33 | 6 9 13 20 21 26 25 71 85 82 On Entrance 31 | 6 7 13 14 23 25 26 33 85 85 Naked Turns . | . . . . . . . . . . Heaviest Build 102 | 14 54 54 66 101 102 102 19 15 19 Greatest Support 43 | 40 40 40 43 40 20 24 26 26 26 Greatest Overweight (x) 8 | . 3 3 4 8 8 8 . . 1 Average Overweight (x) 1 | . 2 1 3 4 7 3 . . . Largest Inventory Capacity 25 | 8 20 20 20 25 25 25 25 5 5 Average Capacity 17 | 8 17 20 20 20 25 25 5 5 5 Most Carried 25 | 8 20 20 20 23 25 25 18 5 5 Average Carried 17 | 6 15 19 19 19 24 23 5 5 4 Final Capacity 25 | 8 20 20 20 25 25 25 5 5 5 Final Carried 24 | 4 20 17 20 23 24 17 5 5 5 Class Distribution -------------------- 35% | Commander-Mutant 30% | Mutant 21% | Hacker-Scout 11% | Scavenger-Mutant Dominant Class ---------------- Mutant | -10/Materials Mutant | -10/Mines Mutant | -9/Materials Commander-Mutant | -9/Storage Commander-Mutant | -9/Recycling Commander-Mutant | -9/Scraptown Hacker-Scout | -6/Factory Hacker-Scout | -6/Waste Hacker-Scout | -6/Factory Resources | -11 -10 -10 -9 -9 -9 -9 -6 -6 -6 ----------- Run | Yrd Mat Min Mat Sto Rec Scr Fac Was Fac Matter Collected 4260 | 278 276 248 1758 831 83 32 438 . 316 Remotely . | . . . . . . . . . . Salvage Created 6560 | 126 594 265 2210 1294 219 . 1310 . 542 Parts 358 | 6 28 11 145 86 10 . 45 . 27 Haulers Intercepted 18 | . 1 . 5 4 . . 8 . . Recyclers Shooed 11 | . 6 . 4 1 . . . . . Parts Field Recycled . | . . . . . . . . . . Retrieved Matter . | . . . . . . . . . . Parts Self-Destructed . | . . . . . . . . . . Prevented . | . . . . . . . . . . Kills | -11 -10 -10 -9 -9 -9 -9 -6 -6 -6 ------- Run | Yrd Mat Min Mat Sto Rec Scr Fac Was Fac Combat Hostiles Destroyed 99 | . 7 15 37 25 3 . 6 . 6 Melee 6 | . . . . . . . 3 . 3 Guns 63 | . 5 . 30 25 3 . . . . Cannons 15 | . 2 6 7 . . . . . . AOE 15 | . . 9 . . . . 3 . 3 Classes Destroyed 14 | 2 6 2 3 . 1 . . . . Worker 7 | . . . 6 . . . 1 . . Builder 7 | . 1 . 2 . . . 2 . 2 Tunneler 6 | 2 . 1 1 . . . . . 2 Hauler 18 | . 1 . 5 4 . . 8 . . Recycler 10 | 1 3 . 4 . 1 . . . 1 Mechanic 3 | . . . 1 1 . . . . 1 Operator 5 | . 1 . . 3 . . 1 . . Watcher 18 | . 2 . 5 1 . . 5 . 5 Swarmer 26 | . 3 . 10 7 . . 3 . 3 Grunt 37 | . 4 4 17 8 2 . 2 . . Sentry 20 | . . . 10 10 . . . . . Demolisher 1 | . . 1 . . . . . . . Programmer 5 | . . . . . 1 . 1 . 3 Assembled 10 | . . 10 . . . . . . . Best Kill Streak 10 | 2 5 10 7 5 3 . 5 . 5 Combat Bots Only 10 | . 3 10 4 4 2 . 3 . 4 Max Kills in Single Turn 3 | 1 2 3 2 2 1 . 3 . 2 Gunslinging 1 | . 1 . . 1 . . . . . Exploded 3 | . . 3 . . . . 3 . 2 Melee 1 | . . . . . . . 1 . 1 Uniques/NPCs Destroyed . | . . . . . . . . . . Combat | -11 -10 -10 -9 -9 -9 -9 -6 -6 -6 -------- Run | Yrd Mat Min Mat Sto Rec Scr Fac Was Fac Hostile Shots Fired 568 | . 26 71 169 142 10 . 104 . 46 Missed 187 | . 7 18 50 32 3 . 56 . 21 Hits 381 | . 19 53 119 110 7 . 48 . 25 Melee 6 | . . 6 . . . . . . . Projectile 375 | . 19 47 119 110 7 . 48 . 25 AOE 1 | . . . . . . . . . 1 Critical Strikes 8 | . . . 3 3 . . 2 . . Damage Taken 5575 | . 208 957 1179 1258 92 . 722 . 1159 Core 989 | . 48 95 158 130 . . 281 . 277 Absorbed by Shields 292 | . . . 122 160 . . 10 . . Ignored by Resistances 140 | . . . 140 . . . . . . Regen/Repaired (Parts) 184 | . . . . 83 . . 64 . 37 Core Remaining (%) 56 | 100 . 42 . . . 28 . . . Volleys Fired 397 | 12 52 38 150 99 6 . 28 . 12 Largest 2 | 2 2 2 2 2 2 . 1 . 1 Hottest 136 | 40 136 136 136 46 46 . 90 . 90 Shots Fired 741 | 24 104 65 300 197 11 . 28 . 12 Gun 576 | 24 68 . 276 197 11 . . . . Cannon 150 | . 36 54 24 . . . 26 . 10 Launcher 15 | . . 11 . . . . 2 . 2 Special . | . . . . . . . . . . Kinetic 576 | 24 68 . 276 197 11 . . . . Thermal 150 | . 36 54 24 . . . 26 . 10 Explosive 15 | . . 11 . . . . 2 . 2 Electromagnetic . | . . . . . . . . . . Robot Hit Streak 27 | 3 10 7 27 27 9 . 7 . . Robot Miss Streak 7 | 2 6 7 2 4 2 . . . . Penetration Max . | . . . . . . . . . . Secondary Targets 8 | . 2 . 3 3 . . . . . Max Gunslinging Chain 1 | . 1 . 1 1 . . . . . Shots Hit Robots 566 | 13 65 34 214 151 13 1 53 . 22 Core Hits 230 | 5 27 29 82 53 4 . 21 . 9 Critical Kills 2 | . . . . 1 . . . . 1 Critical Parts Destroyed 3 | . . . . . . . . . 3 Critical Strikes 10 | . . . . 1 . . 4 . 5 Destroy 1 | . . . . 1 . . . . . Smash 4 | . . . . . . . . . 4 Sever 5 | . . . . . . . 4 . 1 Melee Attacks 228 | . 5 . 15 2 5 1 127 . 73 Impact 51 | . 5 . 15 2 . . . . 29 Slashing 161 | . . . . . . . 124 . 37 Piercing 10 | . . . . . . . 3 . 7 Sneak Attacks 26 | . . . . . 5 1 11 . 9 Combat Hostiles . | . . . . . . . . . . Follow-up Attacks 3 | . . . . . . . . . 3 Damage Inflicted 13323 | 123 884 1344 3484 2547 140 . 2803 . 1998 Guns 6456 | 123 492 . 3154 2547 140 . . . . Cannons 1367 | . 389 648 330 . . . . . . Explosions 1387 | . . 696 . . . . 226 . 465 Melee 4110 | . . . . . . . 2577 . 1533 Ramming 3 | . 3 . . . . . . . . Kinetic 6456 | 123 492 . 3154 2547 140 . . . . Thermal 1367 | . 389 648 330 . . . . . . Explosive 1387 | . . 696 . . . . 226 . 465 Electromagnetic . | . . . . . . . . . . Impact 689 | . . . . . . . . . 689 Slashing 3421 | . . . . . . . 2577 . 844 Piercing . | . . . . . . . . . . Highest Corruption 25 | . . . . 1 1 3 1 1 25 Average Corruption 1 | . . . . 1 1 1 1 1 3 Corruption Purged 1 | . . . . . . . . . 1 Corruption Blocked . | . . . . . . . . . . Effects 51 | . . . . 2 9 12 18 . 10 Message Errors 13 | . . . . . 2 3 5 . 3 Matter Fused 8 | . . . . . 2 3 2 . 1 Heat Flow Errors 6 | . . . . . . 2 2 . 2 Energy Discharges 7 | . . . . . 1 1 4 . 1 Parts Fused 4 | . . . . . . 1 2 . 1 Data Loss (minor) 6 | . . . . 2 . 2 2 . . Data Loss (major) 4 | . . . . . 3 . 1 . . Misfires 1 | . . . . . 1 . . . . Alerts 1 | . . . . . . . . . 1 Misdirections 1 | . . . . . . . . . 1 Overload Shots . | . . . . . . . . . . Overflow Damage 1031 | . . 57 . . . . 265 . 709 Projectiles 29 | . . 29 . . . . . . . Explosions 64 | . . 28 . . . . 18 . 18 Melee 938 | . . . . . . . 247 . 691 Knockbacks . | . . . . . . . . . . Impact . | . . . . . . . . . . Kinetic . | . . . . . . . . . . Secondary . | . . . . . . . . . . Self-Inflicted Damage 156 | . . 136 . . . . 20 . . Shots 5 | . . 4 . . . . 1 . . Rammed 1 | . 1 . . . . . . . . Targets Rammed 1 | . 1 . . . . . . . . Kicked . | . . . . . . . . . . Crushed . | . . . . . . . . . . Highest Temperature 330 | . 330 264 138 11 . 190 114 270 276 Average Temperature 62 | . 108 82 21 2 . 96 42 145 85 Received Heat Transfer 1286 | . 84 147 406 466 21 . 135 . 27 Siege Activations . | . . . . . . . . . . Martial Activations . | . . . . . . . . . . Shielding Activations . | . . . . . . . . . . Robots Disrupted . | . . . . . . . . . . Combat Hostiles . | . . . . . . . . . . Robots Corrupted 2 | . . . . . . . . . 2 Combat Hostiles . | . . . . . . . . . . Parts Fried 7 | . . . 2 . . . . . 5 Impact Corruptions 12 | . . . . . . . . . 12 Robots Melted . | . . . . . . . . . . Combat Hostiles . | . . . . . . . . . . Parts Melted 2 | . 1 1 . . . . . . . Heat Transferred 2368 | . 666 1147 555 . . . . . . Parts Sabotaged . | . . . . . . . . . . Parts Stolen . | . . . . . . . . . . Parts Stripped . | . . . . . . . . . . Power Chain Reactions . | . . . . . . . . . . Alert | -11 -10 -10 -9 -9 -9 -9 -6 -6 -6 ------- Run | Yrd Mat Min Mat Sto Rec Scr Fac Was Fac Maximum Alert Level 3 | . . . 1 3 1 . 2 . 1 Low Security (%) 72 | 100 100 100 70 13 93 . 68 100 89 Level 1 17 | . . . 29 13 6 . 30 . 10 Level 2 6 | . . . . 45 . . 1 . . Level 3 3 | . . . . 27 . . . . . Level 4 . | . . . . . . . . . . Level 5 . | . . . . . . . . . . High Security . | . . . . . . . . . . Max Security . | . . . . . . . . . . Peak Influence 805 | 5 116 50 322 805 239 . 460 135 270 Initial 239 | . . 5 . 65 239 . . 135 94 Average 165 | 2 32 7 159 506 47 . 165 135 94 Influence Increases 5694 | 15 316 180 1241 1560 390 . 1284 . 708 Destroy 0b10 Robot/C 2140 | . 140 100 740 780 140 . 120 . 120 Destroy 0b10 Robot/NC 385 | 15 40 5 120 55 10 . 85 . 55 Destroy Leader 634 | . 36 20 210 272 . . 46 . 50 Allied During Kill 330 | . . . . 260 68 . 2 . . Trap Triggered on 0b10 10 | . . . 10 . . . . . . Successful Hack 352 | . 49 . 39 52 22 . 126 . 64 Select Force Hacks 180 | . . . . 30 150 . . . . Disable Machine 300 | . 30 . 60 60 . . 135 . 15 Destroy Structure 238 | . 6 40 17 6 . . 95 . 74 Partial Spotted 180 | . . . . . . . 75 . 105 Lose Combat Pursuer 945 | . 15 15 45 45 . . 600 . 225 Influence Decreases 5488 | 15 301 195 1087 1100 942 62 898 251 637 Entered New Map 828 | . . 10 . 89 375 62 . 251 41 Time Decay 3028 | 15 301 144 615 571 378 . 518 . 486 Lost Part 271 | . . 41 40 80 10 . 10 . 90 Lost Ally 156 | . . . . 60 6 . 70 . 20 Purge Threat 1205 | . . . 432 300 173 . 300 . . Squads Dispatched 57 | . . . 4 14 . . 25 . 14 Investigation 32 | . . . 4 6 . . 12 . 10 Extermination 10 | . . . . . . . 7 . 3 Reinforcement 7 | . . . . 2 . . 4 . 1 Assault 3 | . . . . 2 . . 1 . . Garrison 5 | . . . . 4 . . 1 . . Intercept . | . . . . . . . . . . Searches Triggered . | . . . . . . . . . . Construction Impeded . | . . . . . . . . . . Haulers Reinforced 4 | . . . . . . . 4 . . Active Scanning Responses . | . . . . . . . . . . Cargo Convoy Interrupts 1 | . . . . . . . 1 . . Stealth | -11 -10 -10 -9 -9 -9 -9 -6 -6 -6 --------- Run | Yrd Mat Min Mat Sto Rec Scr Fac Was Fac Distress Signals 18 | . 1 . 3 4 . . 9 . 1 Communications Jammed . | . . . . . . . . . . Distress Signals . | . . . . . . . . . . Times Spotted 254 | . 18 24 47 52 5 . 63 6 39 Peak Tracking Total 13 | . 3 7 4 5 3 . 10 6 13 Tactical Retreats 35 | . 1 2 3 3 . . 21 . 5 Traps | -11 -10 -10 -9 -9 -9 -9 -6 -6 -6 ------- Run | Yrd Mat Min Mat Sto Rec Scr Fac Was Fac Traps Triggered 10 | . . . 1 2 . . 4 . 3 Indirectly . | . . . . . . . . . . Trap Hack Attempts . | . . . . . . . . . . Triggered . | . . . . . . . . . . Disarmed . | . . . . . . . . . . Reprogrammed 6 | . . . 6 . . . . . . Reused 1 | . . . 1 . . . . . . Traps Extracted 4 | . . . 4 . . . . . . Installed . | . . . . . . . . . . Triggered 1 | . . . 1 . . . . . . Most Traps Carried 4 | . . . 4 4 4 4 4 4 4 Machines | -11 -10 -10 -9 -9 -9 -9 -6 -6 -6 ---------- Run | Yrd Mat Min Mat Sto Rec Scr Fac Was Fac Machines Disabled 20 | . 2 . 4 4 . . 9 . 1 Max in Single Turn 6 | . 2 . 1 1 . . 6 . 1 Garrison Access 7 | . . . . . . . 3 . 4 Machines Repaired . | . . . . . . . . . . Machines Dismantled . | . . . . . . . . . . Machines Sabotaged . | . . . . . . . . . . Overloaded Fab Kills . | . . . . . . . . . . Hacking | -11 -10 -10 -9 -9 -9 -9 -6 -6 -6 --------- Run | Yrd Mat Min Mat Sto Rec Scr Fac Was Fac Machines Accessed 105 | . 7 . 17 13 10 2 34 . 22 Terminals 57 | . 7 . 12 9 5 . 16 . 8 Fabricators 7 | . . . . . . . 3 . 4 Repair Stations 9 | . . . 2 2 . . 3 . 2 Recycling Units 16 | . . . 1 1 5 . 7 . 2 Scanalyzers 5 | . . . 2 . . . 1 . 2 Garrison Access 9 | . . . . 1 . . 4 . 4 Total Hacks 332 | . 19 . 56 37 26 7 97 . 90 Successful 208 | . 15 . 35 18 17 7 58 . 58 Failed 123 | . 3 . 21 19 9 . 39 . 32 Catastrophic 9 | . 1 . 2 2 . . 3 . 1 Database Lockouts 1 | . 1 . . . . . . . . Manual 145 | . 15 . 21 6 16 . 47 . 40 Terminals 201 | . 19 . 35 25 21 . 60 . 41 Fabricators 29 | . . . . . . . 7 . 22 Repair Stations 28 | . . . 7 8 . . 5 . 8 Recycling Units 22 | . . . 1 1 5 . 13 . 2 Scanalyzers 24 | . . . 13 . . . 2 . 9 Garrison Access 21 | . . . . 3 . . 10 . 8 Terminal Hacks 93 | . 11 . 17 10 8 7 25 . 15 Record 7 | . . . . . . 7 . . . Part Schematic 9 | . . . 2 . 1 . 4 . 2 Robot Schematic 1 | . . . . 1 . . . . . Robot Analysis 7 | . 4 . 1 . . . 2 . . Prototype ID Bank 1 | . . . 1 . . . . . . Open Door 2 | . . . . 2 . . . . . Level Access Points 1 | . . . . . . . 1 . . Branch Access Points 5 | . 1 . 1 1 . . 1 . 1 Machine Index 1 | . . . . . . . 1 . . Terminal Index 5 | . 1 . 1 . 1 . 1 . 1 Garrison Index 1 | . . . . . . . . . 1 Alert Level 7 | . 1 . 2 1 1 . . . 2 Unreport Threat 9 | . . . 3 2 2 . 2 . . Locate Traps 14 | . 2 . 4 . 1 . 4 . 3 Reprogram Traps 1 | . . . 1 . . . . . . Dispatch Records 3 | . . . . . 1 . 1 . 1 Maintenance Status 2 | . . . . . . . 1 . 1 Patrol Status 2 | . . . . . . . 1 . 1 Recall Investigation 1 | . . . . . . . 1 . . Recall Extermination 1 | . . . . . . . 1 . . Recall Reinforcements 2 | . . . . 1 . . 1 . . Recall Assault 1 | . . . . . . . 1 . . Hauler Manifests 7 | . 1 . 1 2 1 . 1 . 1 Registered Components 3 | . 1 . . . . . 1 . 1 Fabricator Hacks 15 | . . . . . . . 3 . 12 Network Status 1 | . . . . . . . . . 1 Load Schematic 9 | . . . . . . . 2 . 7 Build 5 | . . . . . . . 1 . 4 Repair Station Hacks 15 | . . . 2 5 . . 5 . 3 Scan Component 9 | . . . 2 3 . . 2 . 2 Repair 5 | . . . . 2 . . 2 . 1 Refit 1 | . . . . . . . 1 . . Recycling Unit Hacks 4 | . . . 1 . . . 3 . . Report Inventory 3 | . . . 1 . . . 2 . . Retrieve Components 1 | . . . . . . . 1 . . Scanalyzer 23 | . . . 12 . . . 2 . 9 Insert Component 8 | . . . 5 . . . 1 . 2 Analyze 15 | . . . 7 . . . 1 . 7 Garrison Access Hacks 7 | . . . . . . . 3 . 4 Seal Access 7 | . . . . . . . 3 . 4 Unauthorized Hacks 51 | . 4 . 3 3 9 . 17 . 15 Terminals 26 | . 4 . 3 2 4 . 5 . 8 Assimilate 6 | . . . . . . . 2 . 4 Botnet 16 | . 2 . 3 2 3 . 3 . 3 Operators 2 | . . . . . 1 . . . 1 Skim 2 | . 2 . . . . . . . . Fabricators 8 | . . . . . . . 3 . 5 Prioritize 2 | . . . . . . . 1 . 1 Haulers 2 | . . . . . . . 1 . 1 Recompile 4 | . . . . . . . 1 . 3 Repair Stations . | . . . . . . . . . . Recycling Units 17 | . . . . 1 5 . 9 . 2 Reject 1 | . . . . . . . 1 . . Recyclers 1 | . . . . . . . 1 . . Mask 1 | . . . . . . . 1 . . Tunnel 6 | . . . . 1 5 . . . . Fedlink 8 | . . . . . . . 6 . 2 Scanalyzers . | . . . . . . . . . . Garrison Access . | . . . . . . . . . . Data Cores Recovered 2 | . 1 . . 1 . . . . . Used . | . . . . . . . . . . Hacking Detections 67 | . 4 . 15 10 5 . 20 . 13 Full Trace Events 20 | . 2 . 4 3 1 . 5 . 5 Feedback Events 2 | . . . . 1 . . . . 1 Corruption 2 | . . . . 1 . . . . 1 Feedback Blocked 1 | . . . . . . . 1 . . Robot Schematics Acquired 1 | . . . . 1 . . . . . Robots Built . | . . . . . . . . . . Authchips . | . . . . . . . . . . Time . | . . . . . . . . . . Total Robot Build Rating . | . . . . . . . . . . Part Schematics Acquired 17 | . . . 7 . 1 . 5 . 4 Parts Built 6 | . . . . . . . 1 . 5 Authchips 5 | . . . . . . . 1 . 4 Time 279 | . . . . . . . 47 . 232 Total Part Build Rating 31 | . . . . . . . 5 . 26 Parts Repaired 5 | . . . . 2 . . 2 . 1 Time 289 | . . . . 187 . . 79 . 23 Parts Recycled . | . . . . . . . . . . Recycled Matter . | . . . . . . . . . . Retrieved Matter . | . . . . . . . . . . Retrieved Components 9 | . . . . . . . 9 . . Parts Scanalyzed 8 | . . . 5 . . . 1 . 2 Part Schematics Acquired 8 | . . . 5 . . . 1 . 2 Parts Damaged . | . . . . . . . . . . Bothacking | -11 -10 -10 -9 -9 -9 -9 -6 -6 -6 ------------ Run | Yrd Mat Min Mat Sto Rec Scr Fac Was Fac Used RIF Installer . | . . . . . . . . . . Robots Hacked 1 | . . . . . . 1 . . . Non-combat . | . . . . . . . . . . Combat 1 | . . . . . . 1 . . . Robot Hacks Applied 1 | . . . . . . 1 . . . parse_system 1 | . . . . . . 1 . . . Relay Couplers Released . | . . . . . . . . . . Fabnet Peak Effective % . | . . . . . . . . . . Robots Rewired 8 | . . . . . 8 . . . . Allies Hacked 1 | . . . . . 1 . . . . Hacks Repelled . | . . . . . . . . . . Allies | -11 -10 -10 -9 -9 -9 -9 -6 -6 -6 -------- Run | Yrd Mat Min Mat Sto Rec Scr Fac Was Fac Total Allies 23 | . . . . 12 8 . 1 . 2 Largest Group 15 | . . . . 12 15 15 6 . 1 Highest-Rated Group 196 | . . . . 150 196 196 92 . 10 Highest-Rated Ally 31 | . . . . 31 31 31 31 . 10 Total Orders . | . . . . . . . . . . Ally Attacks 137 | . . . . 100 21 . 16 . . Total Damage 1591 | . . . . 1174 269 . 148 . . Kills 21 | . . . . 17 4 . . . . Allies Corrupted . | . . . . . . . . . . Allies Melted 1 | . . . . . . . 1 . . Intel | -11 -10 -10 -9 -9 -9 -9 -6 -6 -6 ------- Run | Yrd Mat Min Mat Sto Rec Scr Fac Was Fac Active Infowar (turns) 11723 | 16 617 19 1986 1721 1536 2606 2001 13 1208 Sensors 3216 | . . 1 . . . . 1994 13 1208 Structural 10513 | . 177 . 1318 1715 1536 2603 1995 13 1156 Seismic 5980 | 16 440 18 1311 597 1263 2335 . . . T.N.C. 1536 | . . . 662 601 273 . . . . Machine Analysis 2648 | . . . . . . 269 2001 13 365 Robot Analysis Total 7 | . 4 . 1 . . . 2 . . Derelict Logs Recovered 1 | . . 1 . . . . . . . Drone Launches . | . . . . . . . . . . Drone Recoveries . | . . . . . . . . . . Exploration | -11 -10 -10 -9 -9 -9 -9 -6 -6 -6 ------------- Run | Yrd Mat Min Mat Sto Rec Scr Fac Was Fac Turns Passed 14595 | 88 1012 974 3379 1722 1536 2606 2001 13 1264 Spaces Moved 12210 | 39 478 367 1686 696 557 1727 3810 64 2786 Core . | . . . . . . . . . . Treads 530 | 4 130 324 2 5 65 . . . . Legs 35 | 35 . . . . . . . . . Wheels 4985 | . 348 43 1684 691 492 1727 . . . Hover . | . . . . . . . . . . Flight 6660 | . . . . . . . 3810 64 2786 Fastest Speed 17 | 120 145 145 145 145 210 135 17 17 17 Average Speed 90 | 124 160 228 150 158 250 149 28 19 26 Slowest Speed 560 | 160 240 240 240 240 560 210 31 26 99 Overloaded Moves 52 | . . . . . . . 2 45 5 Propulsion Burnouts . | . . . . . . . . . . Robots Hopped 22 | . . . . . . . 15 . 7 Potential Cave-ins 2 | . . . . . . . . . 2 Cave-ins Triggered 2 | . . . . . . . . . 2 Exploration Rate (%) 76 | 4 91 77 99 92 98 88 84 71 65 Regions Visited 9 Branch Regions 4 Pre-discovered Areas 7 | . . . . 1 5 . 1 . . Known Exits Taken 3 | . 1 . 1 1 . . . . . Unknown Exits Taken 4 | 1 . 1 . . 1 1 . . . Scrap Searched 4 | . . 2 . . . 2 . . . Spaces Dug 155 | . 4 9 11 . . . 89 . 42 Terrain Destroyed 274 | . 4 81 11 . . . 94 . 84 Melee 96 | . 4 . 11 . . . 49 . 32 Projectile 39 | . . 4 . . . . 25 . 10 AOE 139 | . . 77 . . . . 20 . 42 Terrain Rammed . | . . . . . . . . . . Walls Destroyed . | . . . . . . . . . . Machines Disabled . | . . . . . . . . . . Actions | -11 -10 -10 -9 -9 -9 -9 -6 -6 -6 --------- Run | Yrd Mat Min Mat Sto Rec Scr Fac Was Fac Total 14621 | 59 611 437 2210 1121 685 1763 4482 63 3190 Wait 1283 | . 43 10 203 259 49 7 439 . 273 Move 12158 | 38 477 366 1685 695 556 1726 3782 63 2770 Hop 20 | . . . . . . . 13 . 7 Pick Up 98 | 2 16 5 35 16 5 4 9 . 6 Fast Attach 45 | 1 . . 8 14 . 2 10 . 10 Attach 48 | 2 . 8 10 7 2 2 10 . 7 Detach 25 | . . 2 4 5 1 4 4 . 5 Swap 117 | . 15 6 56 6 2 4 13 . 15 Drop 114 | 4 2 2 44 18 3 13 22 . 6 Fire 397 | 12 52 38 150 99 6 . 28 . 12 Melee 213 | . 5 . 15 2 5 1 125 . 60 Ram . | . . . . . . . . . . Kick . | . . . . . . . . . . Crush 1 | . 1 . . . . . . . . Escape Stasis 46 | . . . . . . . 27 . 19 Rewire 56 | . . . . . 56 . . . . Trap . | . . . . . . . . . . Miscellaneous . | . . . . . . . . . . Route ------- -11/Scrapyard -10/Materials (discovered 4 exits: *Mat x3 / *Min) -10/Mines (discovered 3 exits: *Mat x2 / [*Sub]) -9/Materials (discovered 7 exits: [*Mat x3] / *Min x2 / *Sto x2) -9/Storage (discovered 2 exits: [*Mat] / *Rec) -9/Recycling (discovered 2 exits: [*Fac] / *Scr) -9/Scraptown (discovered 2 exits: *Fac x2) -6/Factory (discovered 6 exits: Fac x4 / *Low x2) -6/Waste -6/Factory (discovered 4 exits: *Fac x2 / *Low x2) History --------- Turn | Location | Event 1 | -11/Scrapyard | Discovered new exit (range 3) 89 | -11/Scrapyard | Entered Materials 308 | -10/Materials | Build established: Mutant 407 | -10/Materials | Central database locked down 407 | -10/Materials | Identified exit to Mines 538 | -10/Materials | Discovered new exit (range 16) 701 | -10/Materials | Discovered new exit (range 3) 820 | -10/Materials | Discovered new exit (range 13) 1101 | -10/Materials | Entered Mines 1130 | -10/Mines | Found a damaged Exp. Sensor Array with a note attached 1136 | -10/Mines | Found Prototype Device 1137 | -10/Mines | Identified Exp. Sensor Array 1295 | -10/Mines | Discovered new exit (range 8) 1447 | -10/Mines | Discovered new exit (range 7) 1630 | -10/Mines | Received a Rocket Launcher from a helpful Derelict 1788 | -10/Mines | Learned Materials garrison access intel 1806 | -10/Mines | Discovered new exit (range 7) 1923 | -10/Mines | Assembled infested the area 1928 | -10/Mines | Assisted by a Guerilla fighting off Assembled 1986 | -10/Mines | Core integrity fell below 50% 1999 | -10/Mines | Destroyed 10 combat bots 2018 | -10/Mines | Lost 5 parts (1p2n2w) 2075 | -10/Mines | Entered Materials 2075 | -9/Materials | Evolved 2 slots: Utility x2 2131 | -9/Materials | Discovered new exit (range 14) 2412 | -9/Materials | Build established: Scavenger-Mutant 2512 | -9/Materials | Discovered new exit (range 5) 2845 | -9/Materials | Discovered new exit (range 16) 2952 | -9/Materials | Discovered new exit (range 13) 3049 | -9/Materials | Identified exit to Mines 3049 | -9/Materials | Identified exit to Storage 3065 | -9/Materials | Discovered new exit (range 16) 3430 | -9/Materials | Lost 3 parts (2u1w) 3816 | -9/Materials | Build established: Mutant 3931 | -9/Materials | Discovered new exit (range 14) 5454 | -9/Materials | Entered Storage 5608 | -9/Storage | Garrison activated, responded to threat 5670 | -9/Storage | Used back door to open Recycling access 5670 | -9/Storage | Discovered new exit (range 4) 5697 | -9/Storage | Core integrity fell below 50% 5924 | -9/Storage | Lost 5 parts (2n2u1w) 6064 | -9/Storage | Assisted by bots powering up and referring to "LRC-V3" 6084 | -9/Storage | Met a pair of Derelict thieves 6193 | -9/Storage | Lost 3 allies 6339 | -9/Storage | Repaired Broken Exp. Sensor Array 6366 | -9/Storage | Build established: Commander-Mutant 6391 | -9/Storage | Repaired Imp. Assault Rifle 6409 | -9/Storage | Discovered new exit (range 16) 6694 | -9/Storage | Identified exit to Recycling 7042 | -9/Storage | Garrison activated, responded to threat 7176 | -9/Storage | Entered Recycling 7176 | -9/Recycling | Accompanied by 8 allies 7733 | -9/Recycling | Discovered new exit (range 14) 8611 | -9/Recycling | Scanned before Scraplab entrance 8636 | -9/Recycling | Discovered new exit (range 11) 8643 | -9/Recycling | Entered Scraplab 8712 | -9/Recycling | Entered Scraptown 8712 | -9/Scraptown | Accompanied by 15 allies 9037 | -9/Scraptown | Discovered new exit (range 13) 9151 | -9/Scraptown | Visited Spacefarers 9175 | -9/Scraptown | Visited Awakened 9328 | -9/Scraptown | Visited Red Mages 9388 | -9/Scraptown | Visited Assassins FH 9518 | -9/Scraptown | Visited UFD Registry 9518 | -9/Scraptown | Registered with UFD as "Flexicoil" 9539 | -9/Scraptown | Visited IN-MT5's Study 9568 | -9/Scraptown | Visited Fellowship of the Rings 9602 | -9/Scraptown | Visited SPCMW 9682 | -9/Scraptown | Visited LU-1G1's Boring Crew 9730 | -9/Scraptown | Visited Observation Area 9766 | -9/Scraptown | Visited Abandonware Association 9784 | -9/Scraptown | Learned abandonware demo "REPAIR.EXE" 9784 | -9/Scraptown | Learned abandonware demo "REBOOT5.EXE" 9821 | -9/Scraptown | Visited A0-MCA Data Center 9856 | -9/Scraptown | Visited Infowarlord's Domain 9878 | -9/Scraptown | Visited Scrap Suit Storage 9922 | -9/Scraptown | Visited Junk Repository 10082 | -9/Scraptown | Visited Curators Association 10136 | -9/Scraptown | Visited Science Testing Area 10315 | -9/Scraptown | System corruption cleaned by C-Scrubber 11129 | -9/Scraptown | Found Exp. Signal Interpreter 11172 | -9/Scraptown | Given a B rating by A0-MCA 11178 | -9/Scraptown | Found A0-MCA's Component Scanner 11235 | -9/Scraptown | Met Optimus 11235 | -9/Scraptown | Accepted into 0bPrime 11304 | -9/Scraptown | Discovered new exit (range 3) 11318 | -9/Scraptown | Entered Factory 11318 | -6/Factory | Accompanied by 6 allies 11318 | -6/Factory | Evolved 6 slots: Propulsion x2, Utility x4 11531 | -6/Factory | Lost 6 allies 11713 | -6/Factory | Build established: Hacker-Scout 11912 | -6/Factory | Fabricated Imp. Hacking Suite? 12097 | -6/Factory | Repaired Chainsword 12256 | -6/Factory | Garrison activated, responded to threat 12326 | -6/Factory | Loaded intel: 8 recycling unit locations 12332 | -6/Factory | Learned location of Protoforge (-2) 12345 | -6/Factory | Discovered new exit (range 12) 12357 | -6/Factory | Identified exit to Lower Caves 12390 | -6/Factory | Identified exit to Factory 12619 | -6/Factory | Cargo convoy interrupted 12718 | -6/Factory | First assault squad dispatched 12860 | -6/Factory | Allied Derelicts emerged from ambush trap array 13280 | -6/Factory | Repaired Cld. VTOL Module 13304 | -6/Factory | Spotted B-75 Beast 13319 | -6/Factory | Manually triggered Chute Trap 13319 | -6/Factory | Sucked down chute 13319 | -6/Factory | Entered Waste 13322 | -6/Waste | Spotted C-40 Crusher 13326 | -6/Waste | Spotted C-40 Crusher 13326 | -6/Waste | Spotted C-40 Crusher 13328 | -6/Waste | Spotted C-40 Crusher 13328 | -6/Waste | Spotted C-40 Crusher 13329 | -6/Waste | Discovered new exit (range 16) 13329 | -6/Waste | Spotted C-40 Crusher 13332 | -6/Waste | Identified exit to Factory 13332 | -6/Waste | Entered Factory 13403 | -6/Factory | Fabricated Imp. System Restoration Module (x2) 13484 | -6/Factory | Discovered exit to Lower Caves (range 14) 13500 | -6/Factory | Discovered exit to Factory (range 12) 13575 | -6/Factory | Spotted B-75 Beast 13655 | -6/Factory | Discovered exit to Factory (range 15) 13725 | -6/Factory | Loaded intel: 8 recycling unit locations 13883 | -6/Factory | Fabricated Cld. VTOL Module (x1) 14008 | -6/Factory | Fabricated Cld. VTOL Module? 14084 | -6/Factory | Fabricated Exp. Sensor Array (x1) 14520 | -6/Factory | Repaired Cld. VTOL Module? 14526 | -6/Factory | Crushed by falling debris 14526 | -6/Factory | Crushed by falling debris 14527 | -6/Factory | Core integrity fell below 50% 14527 | -6/Factory | System corruption reached 10% 14557 | -6/Factory | Lost 6 parts (1p5u) 14596 | -6/Factory | Self-destructed Last Messages --------------- 14562_ Acquired Hacking Suite. 14579_ System corrupted: IFF burst signal emitted. 14589_ Acquired Adv. Signal Interpreter. 14596_ C-30 ARC bursts open, deploying its payload. 14596_ X-62 Marksman unfolds itself. 14596_ H-66 Slayer unfolds itself. 14596_ X-67 Chaingunner unfolds itself. 14596_ H-66 Slayer unfolds itself. 14596_ E-15 Imp unfolds itself. 14596_ Slug penetrates Wall. 14596_ C-30 ARC bursts open, deploying its payload. 14596_ H-66 Slayer unfolds itself. 14596_ X-72 Disruptor unfolds itself. 14596_ P-60 Hacker unfolds itself. 14596_ E-15 Imp unfolds itself. 14596_ Penetrated by Slug. 14596_ Imp. Hacking Suite destroyed. 14596_ Chain reaction triggered in Lgt. Ion Engine. 14596_ E-15 Imp destroyed. 14596_ Cld. VTOL Module destroyed. Map ----- +----------------------------------------------------+ | ?????????????????????????????????????????????????? | | ?????????????????????????????????????????????????? | | ?????????????????????????????????????????????????? | | ?????????????????????????????????????????????????? | | ?????????????????????????????????????????????????? | | ?????????????????????????????????????????????????? | | ?????????????????????????????????????????????????? | | ?????????????????????????????????????????????????? | | ?????????????????????????????????????????????????? | | ?????????????????????????????????????????????????? | | ?????????????????????????????????????????????????? | | ?????????????????????????????????????????????????? | | ??????????????#################################??? | | ??????????????#################################??? | | ??????????????## #### #! ##??? | | ??????????????##"" = #### """"# """" ##??? | | ??????????????##"" #### """"# """" ##??? | | ??????????????##""" + + """"# """" ##??? | | ??????????????##""" #### """"# """" ##??? | | ??????????????##""" #### """"# """" ##??? | | ??????????????## #### """"# """" ##??? | | #?###?????????## #### """"#[ """" ##??? | | #?###?????????## ###; # ####? | | ? ##?????????######+####; %=#####+######+#######? | | "? ##?????????### ex%h ? | | "" ############## @h p ? | | "" ############## ph ? | | # ! # xx """ !!!?? | | "" # ? # i A """ !!! ? | | "" # ?? ! # ################ """? !! | | "" # ??? """ # %############### | | # ??" """ # ##????????????#T """ | | # ??" """ + ##????????????## """ | | # # ##????????????## """ !!! ? | | =# """ """ # ##??############ !!??? | | # ??" """ # ##??############ * ????? | | +### ??? """ # ##??## # ##????? | | ### ??? ? # ##??## # ##????? | | ### # ##??## # ##????? | | ################ ##??## + ##????? | | [ ##??## # ##????? | | ############# ##??## # ##????? | | #### # ##??## # ##????? | | #### # ###### ## ##????? | | #### * /! # ##########+###### ##????? | | #### / # # #### ##????? | | #### ! + # """" #### ##????? | | #### # """" #### ##????? | | ####! # """" #### ##????? | | #### # """" ####### ##????? | +----------------------------------------------------+ Best States ------------- Heat Dissipation 42 Energy Generation 21 Energy Capacity 280 Matter Stores 300 Matter Capacity 300 Sight Range 16 Robot Scan Range 20 Terrain Scan Density 10 Armor Coverage 300 Resistance: KI 20 Evasion (%) 64 Targeting Accuracy 5 Recoil Reduction 2 Offensive Hacking 36 Defensive Hacking 12 Authchip Count 4 Trap Extractor Capacity 4 Item Schematics ----------------- Utility Shielding | -9/Materials | Scanalyzed System Shield | -9/Materials | Scanalyzed Flight Unit | -9/Materials | Hacked Trap Extractor | -9/Materials | Hacked Exp. Sensor Array | -9/Materials | Scanalyzed Assault Rifle | -9/Materials | Scanalyzed Lrg. Storage Unit | -9/Materials | Scanalyzed Rocket Launcher | -9/Recycling | Hacked Imp. Hacking Suite | -6/Factory | Hacked Adv. Signal Interpreter | -6/Factory | Hacked Cld. VTOL Module | -6/Factory | Scanalyzed Imp. System Shield | -6/Factory | Hacked Imp. System Restoration Module | -6/Factory | Hacked Imp. Light Armor Plating | -6/Factory | Scanalyzed Imp. Utility Shielding | -6/Factory | Hacked Hvy. Plasma Cannon | -6/Factory | Scanalyzed Smartbomb Launcher | -6/Factory | Hacked Robot Schematics ------------------ G-34 Mercenary | -9/Storage | Hacked Fabricated ------------ Imp. Hacking Suite | x1 | -6/Factory | Authchip Imp. System Restoration Module | x2 | -6/Factory | Authchip Cld. VTOL Module | x1 | -6/Factory | Authchip Cld. VTOL Module | x1 | -6/Factory | Authchip Exp. Sensor Array | x1 | -6/Factory | Authchip Repaired ---------- Exp. Sensor Array | 62% | -9/Storage | Broken Imp. Assault Rifle | 48% | -9/Storage Chainsword | 18% | -6/Factory Cld. VTOL Module | 68% | -6/Factory Cld. VTOL Module | 38% | -6/Factory Alien Tech Used ----------------- None Achievements -------------- None Challenges ------------ None Game ------ Seed SuperchargedMachineInjector Manual? 0 Play Time 03:08:34 Cumulative 666.9 hours Start 2025.07.06 @ 11:32:12 End 2025.07.13 @ 14:41:59 Sessions 5 Manual Loads 0 Difficulty Rogue Special Mode None Game No. 301 Rogue 157 Adventurer 144 Explorer 0 Win Type - Total 11 Types 4/1/5/1/0/0/0/0/0/0 Lore% 86 Gallery% 81 Achievement% 73 Wizard Run 0 Options --------- Layout 0 ASCII 0 Keyboard 0 Movement Mouse Keybinds 0 Fullscreen 2 Font 20/SmallcapsGlow Map View 66x50 Zoom Use 0% Tactical HUD 1 Map Filters NONE Filters NONE Steam 1 RUN: eecaf6e7-2c71-4c4f-849c-31306d5c4915